{"text_format":"1","workbook":"xlsx","n_sheets":7,"sheets":["Календарный график (2)","Титул","Сводные","План уч проц","Лист3","Перечень кабинетов","Лист1"],"not_rendered":{"charts":0,"images":0,"macros":1,"external_links":1,"defined_names":26,"comments":0,"pivot_tables":0},"unopened":[],"bounds":{"document_bytes":16777216,"sheet_cells":100000,"rows_first":2000,"rows_last":500,"rows_between":2000,"halvings":0,"cell_chars":16384,"cell_head_chars":4096},"cells_cut":0,"cells_raw":0,"read":"whole","date_system":"1900"}

{"sheet":"Календарный график (2)","index":0,"n_rows":39,"n_cols":54,"rows_kept":39,"cut":false,"hidden":false,"merged":[[16,17,16,18],[16,20,16,28],[14,3,14,27],[1,9,1,46],[3,1,5,1],[3,2,3,5],[3,7,3,9],[3,11,3,14],[3,15,3,18],[3,20,3,22],[3,24,3,27],[3,28,3,31],[3,33,3,35],[3,37,3,40],[3,41,3,44],[3,46,3,48],[16,29,16,30],[16,32,16,35],[3,50,3,53],[11,49,11,53],[20,4,20,5],[20,7,20,28],[16,39,16,40],[16,42,16,48],[18,4,18,5],[18,7,18,14],[18,17,18,18],[18,20,18,28],[18,29,18,30],[18,32,18,38],[16,4,16,5],[16,7,16,14]]}
[]
[null,null,null,null,null,null,null,null,null,"Календарный график учебного процесса"]
[]
[null,"Курс","Сентябрь",null,null,null,null,"Октябрь",null,null,null,"Ноябрь",null,null,null,"Декабрь",null,null,null,null,"Январь",null,null,null,"Февраль",null,null,null,"Март",null,null,null,null,"Апрель",null,null,null,"Май",null,null,null,"Июнь",null,null,null,null,"Июль",null,null,null,"Август"]
[null,null,2,9,16,23,30,7,14,21,28,4,11,18,25,2,9,16,23,30,6,13,20,27,3,10,17,24,10,17,24,23,31,7,14,21,28,5,12,19,26,2,9,16,23,30,7,14,21,28,4,11,18,25]
[null,null,8,15,22,29,6,13,20,27,3,10,17,24,1,8,15,22,29,5,12,19,26,2,9,16,23,2,16,23,30,29,6,13,20,27,4,11,18,25,1,8,15,22,29,6,13,20,27,3,10,17,24,31]
[null,1,null,null,null,null,null,null,null,null,null,null,null,null,null,null,null,null,null,"-","-",null,null,null,null,null,null,null,null,null,null,null,null,null,null,null,null,null,null,null,null,null,null,"А","А","-","-","-","-","-","-","-","-","-"]
[null,2,null,null,null,null,null,null,null,null,null,null,null,null,null,null,null,null,"ПП","-","-",null,null,null,null,null,null,null,null,null,null,null,null,null,"ОУ","ОУ","ОУ",null,null,null,null,null,null,null,"А","-","-","-","-","-","-","-","-","-"]
[null,3,null,null,null,null,"ОУ","ОУ","ПП/*","ПП/*",null,"ПП/*","ПП/*","ПП/*","ПП/*","ОУ","ПП","ПП","А","-","-",null,null,"ПП/*","ПП/*","ПП/*","ПП/*","ПП/*","ПП/*","ПП/*",null,"ПП/*","ПП/*","ПП/*",null,null,null,null,null,null,null,null,"А","ПП","ПП","ПП","-","-","-","-","-","-","-","-"]
[null,4,"ПП","ПП","ПП/",null,null,null,null,null,null,null,null,null,null,null,"ОУ","ОУ","А","-","-",null,null,null,null,null,null,"ПП","ПП","ПП","ПП",null,null,null,"А","ПД","ПД","ПД","ПД","ИА","ИА","ИА","ИА","ИА","ИА"]
[null,null,1,2,3,4,5,6,7,8,9,10,11,12,13,14,15,16,17,18,19,20,21,22,23,24,25,26,27,28,29,30,31,32,33,34,35,36,37,38,39,40,41,42,43,44,45,46,47,48,49,50,51,52]
[null,null,1,2,3,4,5,6,7,8,9,10,11,12,13,14,15,16,17,null,null,1,2,3,4,5,6,7,8,9,10,11,12,13,14,15,16,17,18,19,20,21,22,23,24,25]
[]
[]
[null,null,null,"Условные обозначения"]
[]
[null,null,null,null,null,null,"-","Теоретическое обучение",null,null,null,null,null,null,null,null,null,"ПП",null,"-","Производственная практика",null,null,null,null,null,null,null,null,"-",null,"-","Каникулы",null,null,null,null,null,null,"ПД",null,"-","Преддипломная практика"]
[]
[null,null,null,null,"ОУ",null,"-","Учебная практика",null,null,null,null,null,null,null,null,null,"А",null,"-","Промежуточная атестация",null,null,null,null,null,null,null,null,"ИА",null,"-","Итоговая аттестация"]
[]
[null,null,null,null,"ПП/*",null,"-","Один день недели практика пробных уроков. 5 дней недели теоретическое обучение"]
[]
[]
[]
[null,null,null,null,null,null,null,null,null,null,null,null,null,null,null,null,null,null,null,null,null,null,null,null,null,null,null,null,null,null,null,null,null,null,null,null,","]
[]
[]
[]
[]
[]
[]
[]
[]
[]
[]
[]
[]
[]
[null,null,null,null,null,null,null,null,null,null,null,null,null,null,null,null,null,null,null,null,null,null,null,null,null,null,null,null,null,null,null,null,null,null,null,null,","]

{"sheet":"Титул","index":1,"n_rows":30,"n_cols":47,"rows_kept":30,"cut":false,"hidden":false,"merged":[[27,26,27,37],[27,44,27,46],[27,42,27,43],[27,39,27,40],[10,9,10,40],[15,11,15,37],[16,11,16,37],[9,2,9,44],[24,26,24,45],[26,26,26,34],[26,35,26,45],[15,5,15,8],[29,30,29,43],[3,36,3,46],[2,36,2,45],[1,36,1,45],[18,9,18,36],[23,26,23,33],[23,34,23,45],[4,36,4,46],[5,37,5,38],[5,43,5,44],[7,14,7,24],[8,1,8,42],[28,26,28,29],[28,30,28,46],[25,26,25,45],[5,40,5,42]]}
[]
[null,null,null,null,null,null,null,null,null,null,null,null,null,null,null,null,null,null,null,null,null,null,null,null,null,null,null,null,null,null,null,null,null,null,null,null,"Утверждаю:"]
[null,null,null,null,null,null,null,null,null,null,null,null,null,null,null,null,null,null,null,null,null,null,null,null,null,null,null,null,null,null,null,null,null,null,null,null,"Директор ______________"]
[null,null,null,null,null,null,null,null,null,null,null,null,null,null,null,null,null,null,null,null,null,null,null,null,null,null,null,null,null,null,null,null,null,null,null,null,"ГБОУ СПО \"МППК\""]
[null,null,null,null,null,null,null,null,null,null,null,null,null,null,null,null,null,null,null,null,null,null,null,null,null,null,null,null,null,null,null,null,null,null,null,null,"М.Н. Верхотурцев"]
[null,null,null,null,null,null,null,null,null,null,null,null,null,null,null,null,null,null,null,null,null,null,null,null,null,null,null,null,null,null,null,null,null,null,null,null,"«",7,null,"»","июня",null,null,201,null,3,"г"]
[]
[null,null,null,null,null,null,null,null,null,null,null,null,null,null,"УЧЕБНЫЙ ПЛАН"]
[null,"Государственного образовательного учреждения среднего профессионального образования "]
[null,null,"«Мишкинский профессионально-педагогический колледж»"]
[null,null,null,null,null,null,null,null,null,"по  специальности среднего профессионального образования"]
[]
[]
[]
[]
[null,null,null,null,null,"\"050146",null,null,null,null,null,"Преподавание  в начальных классах"]
[]
[]
[null,null,null,null,null,null,null,null,null,"по программе углубленной подготовки"]
[]
[]
[]
[]
[null,null,null,null,null,null,null,null,null,null,null,null,null,null,null,null,null,null,null,null,null,null,null,null,null,null,"Квалификация:",null,null,null,null,null,null,null,"Учитель начальных классов"]
[]
[]
[null,null,null,null,null,null,null,null,null,null,null,null,null,null,null,null,null,null,null,null,null,null,null,null,null,null,"Форма обучения-  ",null,null,null,null,null,null,null,null,"очная"]
[null,null,null,null,null,null,null,null,null,null,null,null,null,null,null,null,null,null,null,null,null,null,null,null,null,null,"Нормативный срок обучения- ",null,null,null,null,null,null,null,null,null,null,null,null,3,null,"г",10,null,"мес"]
[null,null,null,null,null,null,null,null,null,null,null,null,null,null,null,null,null,null,null,null,null,null,null,null,null,null,"На базе",null,null,null,"основного общего образования"]
[null,null,null,null,null,null,null,null,null,null,null,null,null,null,null,null,null,null,null,null,null,null,null,null,null,null,"Профиль",null,null,null,"естественно - научный"]

{"sheet":"Сводные","index":2,"n_rows":11,"n_cols":9,"rows_kept":11,"cut":false,"hidden":false,"merged":[[2,7,4,7],[2,8,4,8],[3,3,4,3],[0,0,0,8],[2,0,4,0],[2,1,4,1],[2,2,4,2],[2,3,2,4],[2,5,4,5],[2,6,4,6]]}
["Сводные данные по бюджету времени (в неделях)"]
[]
["Курсы","Обучение по дисциплинам и междисциплинарным курсам","Учебная практика","Производственная практика",null,"Промежуточная аттестация","Государственная итоговая аттестация","Каникулы","Всего"]
[null,null,null,"по профилю специальности","преддипломная"]
[null,null,null,null,"(для СПО)"]
[1,2,3,4,5,6,7,8,9]
["I курс",{"$f":"I7-H7-G7-F7-E7-D7-C7","v":39},null,null,null,2,null,11,52]
["II курс",{"$f":"I8-H8-G8-F8-E8-D8-C8","v":36},3,1,null,1,null,11,52]
["III курс",29.5,3,7.5,null,2,null,10,52]
["VI курс",20.5,2,6.5,4,2,6,2,43]
["Всего",{"$f":"SUM(B7:B10)","v":125},8,15,4,7,6,34,199]

{"sheet":"План уч проц","index":3,"n_rows":99,"n_cols":21,"rows_kept":99,"cut":false,"hidden":false,"merged":[[94,9,95,12],[94,13,95,13],[94,14,95,14],[94,15,95,15],[94,16,95,16],[91,20,92,20],[94,17,95,17],[94,18,95,18],[94,19,95,19],[94,20,95,20],[6,19,6,20],[2,13,5,20],[96,9,96,12],[97,9,97,12],[98,1,98,7],[91,8,98,8],[96,1,96,7],[97,1,97,7],[94,1,94,7],[98,9,98,12],[91,9,92,12],[95,1,95,7],[91,16,92,16],[91,17,92,17],[91,18,92,18],[91,19,92,19],[6,13,6,14],[6,15,6,16],[6,17,6,18],[91,13,92,13],[91,14,92,14],[91,15,92,15],[2,6,5,11],[6,8,6,11],[7,9,7,11],[2,12,11,12],[8,7,11,7],[8,10,11,10],[8,11,11,11],[6,6,7,6],[6,7,7,7],[2,1,7,1],[8,1,11,1],[8,2,11,2],[8,5,11,5],[8,4,11,4],[8,3,11,3],[2,3,6,5],[2,2,7,2],[87,1,87,2],[93,1,93,7],[91,1,92,7],[8,8,11,8],[8,9,11,9],[8,6,11,6],[88,1,88,2],[93,9,93,12]]}
[]
[null,null,null,null,null,null,null,null,null,null,null,null,null,null,null,null,null,null,null,"Технич"]
[null,"   Индекс","Наименование циклов, дисциплин, профессиональных модулей, МДК, практик","Форма промежуточной аттестации",null,null,"Учебная нагрузка обучающихся (час.)",null,null,null,null,null,"Учебная и производственная практика","Распределение обязательной нагрузки по курсам и семестрам[2] (час. в семестр)"]
[]
[]
[]
[null,null,null,null,null,null,"максимальная","самостоятельная работа","Обязательная аудиторная",null,null,null,null,"I курс",null,"II курс",null,"III курс",null,"IV курс"]
[null,null,null,"З","ДЗ","Э",null,null,"всего занятий","в т. ч.",null,null,null,"1 семестр","2 семестр","3 семестр","4 семестр","5 семестр","6 семестр","7 семестр","8 семестр"]
[null,null,null,null,null,null,null,null,null,"лекций, уроков, семинаров","лаб. и практ. занятий","Курсовая",null,"сем.","сем.","сем.","сем.","сем.","сем.","сем.","сем."]
[null,null,null,null,null,null,null,null,null,null,null,null,null,null,null,17,23,16,24,16,17]
[null,null,null,null,null,null,null,null,null,null,null,null,null,17,22,16,20,10,19,11,10]
[null,null,null,null,null,null,null,null,null,null,null,null,null,"нед","нед","нед","нед","нед","нед","нед","нед"]
[null,1,2,3,4,5,6,7,8,9,10,11,12,13,14,15,16,17,18,19,20]
[null,"О.00","Общеобразовательный цикл",null,null,null,null,null,{"$f":"SUM(I15:I26)","v":1404},null,null,null,null,{"$f":"SUM(N15:N26)","v":612},{"$f":"SUM(O15:O26)","v":792}]
[null,"ОДБ.01","Русский язык",null,null,2,null,null,{"$f":"SUM(N15:S15)","v":78},null,null,null,null,34,44]
[null,"ОДБ.02","Литература",null,2,null,null,null,{"$f":"SUM(N16:S16)","v":117},null,null,null,null,51,66]
[null,"ОДБ.03","Иностранный язык",null,2,null,null,null,117,null,null,null,null,51,66]
[null,"ОДБ.04","Математика",null,null,2,null,null,234,null,null,null,null,102,132]
[null,"ОДБ.05","История",null,2,null,null,null,78,null,null,null,null,34,44]
[null,"ОДБ.06","Обществознание (включая экономику и право)",null,2,null,null,null,78,null,null,null,null,34,44]
[null,"ОДБ.07","Информатика",null,2,null,null,null,78,null,null,null,null,34,44]
[null,"ОДБ.08","Основы безопасности жизнедеятельности",null,2,null,null,null,78,null,null,null,null,34,44]
[null,"ОДБ.09","Физическая культура",1,2,null,null,null,117,null,null,null,null,51,66]
[null,"ОДП.01","Биология",null,2,null,null,null,117,null,null,null,null,51,66]
[null,"ОДП.02","Физика",null,null,2,null,null,195,null,null,null,null,85,110]
[null,"ОДП.03","Химия",null,2,null,null,null,117,null,null,null,null,51,66]
[null,null,"Всего по циклам ОПОП",null,null,null,{"$f":"G28+G36+G41","v":4644},{"$f":"G27-I27","v":1548},{"$f":"I28+I36+I41","v":3096},{"$f":"J28+J36+J41","v":1494},1602,null,null,null,null,{"$f":"P28+P36+P41","v":576},{"$f":"Q28+Q36+Q41","v":720},360,702,414,324]
[null,"ОГСЭ.00","Общий гуманитарный и социально-экономический цикл ",null,null,null,{"$f":"SUM(G29:G35)","v":935},{"$f":"SUM(H29:H35)","v":327},{"$f":"SUM(I29:I35)","v":608},{"$f":"SUM(J29:J35)","v":212},396,null,null,null,null,{"$f":"SUM(P29:P35)","v":176},{"$f":"SUM(Q29:Q35)","v":136},40,172,44,40]
[null,"ОГСЭ.01","Основы философии",null,6,null,54,{"$f":"G29-I29","v":6},{"$f":"SUM(P29:U29)","v":48},48,null,null,null,null,null,null,null,null,48]
[null,"ОГСЭ.02","История",null,3,null,54,6,{"$f":"SUM(P30:U30)","v":48},48,null,null,null,null,null,48]
[null,"ОГСЭ.03","Психология общения",null,6,null,54,6,{"$f":"SUM(P31:U31)","v":48},6,42,null,null,null,null,null,null,null,48]
[null,"ОГСЭ.04","Иностранный язык",null,8,null,250,{"$f":"G32-I32","v":78},{"$f":"SUM(P32:U32)","v":172},6,166,null,null,null,null,32,40,20,38,22,20]
[null,"ОГСЭ.05","Физическая культура","3,4,5,6,7",8,null,344,{"$f":"G33-I33","v":172},{"$f":"SUM(P33:U33)","v":172},6,166,null,null,null,null,32,40,20,38,22,20]
[null,"ОГСЭ.06","Русский язык и культура речи",null,4,null,84,28,56,46,10,null,null,null,null,16,40]
[null,"ОГСЭ.07","МХК",null,4,null,95,31,64,52,12,null,null,null,null,48,16]
[null,"ЕН.00","Математический и общий естественнонаучный цикл",null,null,null,{"$f":"SUM(G37:G40)","v":282},{"$f":"SUM(H37:H40)","v":94},{"$f":"SUM(I37:I40)","v":188},{"$f":"SUM(J37:J40)","v":61},{"$f":"SUM(K37:K40)","v":127},null,null,null,null,{"$f":"P37+P38+P39+P40","v":112},{"$f":"Q37+Q38+Q39+Q40","v":44},32,0,0,0]
[null,"ЕН.01","Математика",null,null,4,72,{"$f":"G37-I37","v":25},{"$f":"SUM(P37:U37)","v":47},20,27,null,null,null,null,32,15]
[null,"ЕН.02","Информатика и информационно-коммуникационные технологии (ИКТ) в профессиональной деятельности",null,4,null,114,{"$f":"G38-I38","v":37},{"$f":"SUM(P38:U38)","v":77},9,68,null,null,null,null,48,29]
[null,"ЕН.03","Экологические основы природопользования",null,3,null,48,{"$f":"G39-I39","v":16},{"$f":"SUM(P39:U39)","v":32},20,12,null,null,null,null,32]
[null,"ЕН.04","Логика",null,4,null,{"$f":"ROUNDDOWN(I40*1.5,0)","v":48},{"$f":"G40-I40","v":16},{"$f":"SUM(P40:U40)","v":32},12,20,null,null,null,null,null,null,32]
[null,"П.00","Профессиональный цикл ",null,null,null,{"$f":"G42+G50","v":3427},{"$f":"H42+H50","v":1127},{"$f":"I42+I50","v":2300},{"$f":"J42+J50","v":1221},{"$f":"K42+K50","v":1079},null,null,null,null,{"$f":"P42+P50","v":288},{"$f":"Q42+Q50","v":540},288,530,370,284]
[null,"ОП.00","Общепрофессиональные дисциплины",null,null,null,{"$f":"SUM(G43:G49)","v":624},{"$f":"SUM(H43:H49)","v":208},{"$f":"SUM(I43:I49)","v":416},{"$f":"SUM(J43:J49)","v":266},{"$f":"SUM(K43:K49)","v":150},null,null,null,null,{"$f":"SUM(P43:P49)","v":176},{"$f":"SUM(Q43:Q49)","v":192},48,0,0,0]
[null,"ОП.01","Педагогика",null,null,4,120,41,{"$f":"SUM(P43:U43)","v":79},59,20,null,null,null,null,48,31]
[null,"ОП.02","Психология ",null,null,4,114,38,76,60,16,null,null,null,null,48,28]
[null,"ОП.03","Возрастная антомия, физиология и гигиена",null,4,null,114,37,77,45,32,null,null,null,null,48,29]
[null,"ОП.04","Правовое обеспечение профессиональной деятельности",null,4,null,54,18,36,30,6,null,null,null,null,null,36]
[null,"ОП.05","Безопасность жизнедеятельности",null,6,null,102,34,68,20,48,null,null,null,null,null,68]
[null,"ОП.06","Основы экономики и предпринимательской деятельности в сфере образования",null,null,5,72,24,48,32,16,null,null,null,null,null,null,48]
[null,"ОП.07","Менеджмент",null,3,null,48,16,32,20,12,null,null,null,null,32]
[null,"ПМ.00","Профессиональные модули",null,null,null,{"$f":"G51+G69+G73+G79+G83","v":2803},{"$f":"H51+H69+H73+H79+H83","v":919},{"$f":"I51+I69+I73+I79+I83","v":1884},{"$f":"J51+J69+J73+J79+J83","v":955},929,60,828,null,null,{"$f":"P51+P69+P73+P79+P83","v":112},{"$f":"Q51+Q69+Q73+Q79+Q83","v":348},240,530,370,284]
[null,"ПМ.01","Преподавание по программам начального общего образования",null,null,"7(к)",{"$f":"SUM(G52:G63)","v":1684},566,{"$f":"SUM(I52:I63)","v":1118},{"$f":"SUM(J52:J63)","v":692},{"$f":"SUM(K52:K63)","v":426},30,{"$f":"SUM(M64:M68)","v":360},null,null,{"$f":"SUM(P52:P63)","v":112},{"$f":"SUM(Q52:Q63)","v":288},166,366,186,0]
[null,"МДК.01.01","Теоретические основы организации обучения в начальных классах",null,4,null,218,72,{"$f":"SUM(P52:U52)","v":146},126,20,null,null,null,null,80,66]
[null,"МДК.01.02","Русский язык с методикой преподавания",null,null,7,336,96,{"$f":"SUM(P53:U53)","v":240},164,76,null,null,null,null,null,80,34,82,44]
[null,"МДК.01.03","Детская литература с практикумом по выразительному чтению",null,null,7,150,70,80,30,50,null,null,null,null,null,null,20,38,22]
[null,"МДК.01.04","Теоретические основы начального курса математики с методикой преподавания",null,null,6,280,94,186,116,70,null,null,null,null,null,26,33,127]
[null,"МДК.01.05","Естествознание с методикой преподавания",null,null,6,150,50,100,70,30,null,null,null,null,null,40,20,40]
[null,"МДК.01.06","Методика обучения продуктивным видам деятельности с практикумом",null,null,6,184,62,122,42,80,null,null,null,null,32,40,30,20]
[null,"МДК.01.07","Теория и методика физического воспитания с практикумом",null,4,null,54,18,36,16,20,null,null,null,null,null,36]
[null,"МДК.01.08","Теория и методика музыкального воспитания с практикумом",null,6,null,84,28,56,36,20,null,null,null,null,null,null,29,27]
[null,"МДК.01.09","Каллиграфия",null,6,null,48,16,32,12,20,null,null,null,null,null,null,null,32]
[null,"МДК.01.10","Основы мировых религий с методикой преподавания курсов духовно-нравственной направленности",7,null,null,84,28,56,40,16,null,null,null,null,null,null,null,null,56]
[null,"МДК.01.11","Методика преподавания обществознания",7,null,null,48,16,32,20,12,null,null,null,null,null,null,null,null,32]
[null,"МДК.01.12","Методика преподавания ОБЖ и профилактики ПАВ в начальной школе",7,null,null,48,16,32,20,12,null,null,null,null,null,null,null,null,32]
[null,"УП.01.01","Учебная практика (полевая)",null,null,null,null,null,null,null,null,null,{"$f":"SUM(N64:U64)","v":72},null,null,null,72]
[null,"УП.01.02","Учебная практика (практика показательных уроков)",null,5,null,null,null,null,null,null,null,{"$f":"SUM(N65:U65)","v":72},null,null,null,null,72]
[null,"ПП.01.01","Производственная практика (психолого-педагогическая)",null,null,null,null,null,null,null,null,null,36,null,null,36]
[null,"ПП.01.02","Производственная практика (первые дни ребенка в школе)",null,null,null,null,null,null,null,null,null,36,null,null,null,null,null,null,36]
[null,"ПП.01.03","Практика пробных уроков",null,7,null,null,null,null,null,null,null,144,null,null,null,null,36,54,54]
[null,"ПМ.02","Организация внеурочной деятельности и общения младших школьников",null,null,"5(к)",{"$f":"G70","v":144},{"$f":"H70","v":48},96,{"$f":"J70","v":46},{"$f":"K70","v":50},null,{"$f":"SUM(M71:M72)","v":108},null,null,{"$f":"P70","v":0},{"$f":"Q70","v":60},36,0,0,0]
[null,"МДК.02.01","Основы организации внеурочной работы ",null,5,null,144,48,{"$f":"SUM(P70:U70)","v":96},46,50,null,null,null,null,null,60,36]
[null,"УП.02.01","Учебная практика (практика по внеурочной деятельности)",null,null,null,null,null,null,null,null,null,36,null,null,null,36]
[null,"ПП 02.01","Производственная практика (практика по внеурочной деятельности)",null,null,null,null,null,null,null,null,null,{"$f":"SUM(N72:U72)","v":72},null,null,null,null,72]
[null,"ПМ.03","Классное руководство",null,null,"8(к)",{"$f":"G74","v":144},{"$f":"H74","v":48},96,52,44,null,{"$f":"SUM(M75:M78)","v":252},null,null,{"$f":"P74","v":0},{"$f":"Q74","v":0},38,58,0,0]
[null,"МДК.03.01","Теоретические и методические основы деятельности классного руководителя",null,6,null,144,48,{"$f":"SUM(P74:U74)","v":96},52,44,null,null,null,null,null,null,38,58]
[null,"УП.03.01","Учебная практика (подготовка к летней практике)",null,null,null,null,null,null,null,null,null,{"$f":"SUM(N75:U75)","v":36},null,null,null,null,36]
[null,"УП.03.02","Учебная практика (практика классного руководителя)",null,6,null,null,null,null,null,null,null,{"$f":"SUM(N76:U76)","v":36},null,null,null,null,null,null,36]
[null,"ПП.03.01","Производственная практика (летняя практика)",null,null,null,null,null,null,null,null,null,{"$f":"SUM(N77:U77)","v":108},null,null,null,null,null,108]
[null,"ПП.03.02","Производственная практика (практика классного руководителя)",null,null,null,null,null,null,null,null,null,72,null,null,null,null,null,null,null,72]
[null,"ПМ.04","Методическое обеспечение образовательного процесса",null,null,"8(к)",{"$f":"SUM(G80:G80)","v":105},{"$f":"SUM(H80:H80)","v":35},{"$f":"SUM(I80:I80)","v":70},{"$f":"SUM(J80:J80)","v":34},{"$f":"SUM(K80:K80)","v":36},30,{"$f":"SUM(M81:M82)","v":72},null,null,{"$f":"P80","v":0},{"$f":"Q80","v":0},0,0,70,0]
[null,"МДК.04.01","Теоретические и прикладные аспекты методической работы учителя начальных классов",null,7,null,{"$f":"ROUNDDOWN(I80*1.5,0)","v":105},35,{"$f":"SUM(P80:U80)","v":70},34,36,null,null,null,null,null,null,null,null,70]
[null,"УП.04.01","Учебная практика (Практика методической работы учителя)",null,null,null,null,0,null,null,null,null,{"$f":"SUM(N81:U81)","v":36},null,null,null,null,null,null,36]
[null,"ПП 04.01","Производственная практика (Практика методической работы учителя)",null,null,null,null,0,null,null,null,null,{"$f":"SUM(N82:U82)","v":36},null,null,null,null,null,null,null,36]
[null,"ПМ.05","Иностранный язык в начальной школе",null,null,"8(к)",{"$f":"SUM(G84:G86)","v":726},222,{"$f":"SUM(I84:I86)","v":504},{"$f":"SUM(J84:J86)","v":131},373,null,{"$f":"M87","v":36},null,null,{"$f":"P84+P85+P86","v":0},{"$f":"Q84+Q85+Q86","v":0},0,106,114,284]
[null,"МДК.05.01","Иностранный язык и страноведение",null,8,null,452,131,{"$f":"SUM(N84:U84)","v":321},25,296,null,null,null,null,null,null,null,106,114,101]
[null,"МДК.05.02","Детская литература стран изучаемого языка",null,8,null,100,33,{"$f":"SUM(N85:U85)","v":67},40,27,null,null,null,null,null,null,null,null,null,67]
[null,"МДК.05.03","Методика обучения иностранному языку в начальных классах",null,8,null,174,58,116,66,50,null,null,null,null,null,null,null,null,null,116]
[null,"ПП.05.01","Производственная практика (Практика пробных уроков)",null,null,null,null,null,null,null,null,null,{"$f":"SUM(N87:U87)","v":36},null,null,null,null,null,null,null,36]
[null,"Всего",null,null,null,null,{"$f":"I88+H88","v":6048},{"$f":"SUM(H41+H36+H28+H14)","v":1548},{"$f":"SUM(I41+I36+I28+I14)","v":4500},{"$f":"SUM(J41+J36+J28+J14)","v":1494},{"$f":"SUM(K41+K36+K28+K14)","v":1602},{"$f":"SUM(L14:L87)","v":120},{"$f":"SUM(M83+M79+M73+M69+M51)","v":828},{"$f":"SUM(N15:N87)","v":612},792,{"$f":"P92+P94+P95","v":612},{"$f":"Q92+Q94+Q95","v":828},576,864,576,612]
[null,"Кол-во часов в неделю",null,null,null,null,null,null,null,null,null,null,null,36,36,{"$f":"P88/P10","v":36},{"$f":"Q88/Q10","v":36},36,36,36,36]
[null,"ПДП","Преддипломная практика ",null,null,null,null,null,null,null,null,null,null,null,null,null,null,null,null,null,144]
[null,"ГИА","Государственная итоговая аттестация"]
[null,"Консультации на учебную группу по 100 часов в год (всего 400 час.)",null,null,null,null,null,null,"Всего","дисциплин и МДК",null,null,null,{"$f":"SUM(N15:N26)","v":612},{"$f":"SUM(O15:O26)","v":792},{"$f":"P27","v":576},{"$f":"Q27","v":720},360,702,414,324]
[]
[null,"Государственная (итоговая) аттестация   216 часов",null,null,null,null,null,null,null,"учебной практики",null,null,null,{"$f":"SUM(N64:N65,N71,N75:N76,N81)","v":0},0,0,108,{"$f":"SUM(R64:R65,R71,R75:R76,R81)","v":108},{"$f":"SUM(S64:S65,S71,S75:S76,S81)","v":0},72,0]
[null,"1. Программа базовой подготовки ",null,null,null,null,null,null,null,"производст. практика/преддипломная практика",null,null,null,{"$f":"SUM(N66:N68,N72,N77:N78,N82,N87)","v":0},{"$f":"SUM(O66:O68,O72,O77:O78,O82,O87)","v":0},36,0,108,162,{"$f":"SUM(T66:T68,T72,T77:T78,T82,T87)","v":90},{"$f":"SUM(U66:U68,U72,U77:U78,U82,U87,U90)","v":288}]
[null,"1.1 Промежуточная аттестация (7 недель) 252"]
[null,"1.2. Дипломный проект (работа)",null,null,null,null,null,null,null,"экзаменов",null,null,null,"-",3,"-",3,2,3,3,3]
[null,"Выполнение дипломного проекта (работы) с 24.05 по 14.06  (всего 4 нед.)",null,null,null,null,null,null,null,"диф.зачетов",null,null,null,"-",8,2,7,2,7,4,4]
[null,"Защита дипломного проекта (работы)  с 15.06 по 28. 06 (всего 2)        ",null,null,null,null,null,null,null,"зачетов",null,null,null,"-","-","-","-","-","-",1,"-"]

{"sheet":"Лист3","index":4,"n_rows":8,"n_cols":10,"rows_kept":8,"cut":false,"hidden":true,"merged":[[0,9,0,36]]}
[null,null,1,5]
["очная",null,2,10,"основного общего образования"]
["заочная",null,3,null,"начального профессионального образования",null,null,null,null,"по программе базовой подготовки"]
["очно-заочная",null,4,null,"среднего (полного) общего образования",null,null,null,null,"по программе углубленной подготовки"]
[null,null,5]
[null,null,6]
[null,null,0,null,null,null,null,null,null,"по  специальности среднего профессионального образования"]
[null,null,null,null,null,null,null,null,null,"по  профессии начального профессионального образования"]

{"sheet":"Перечень кабинетов","index":5,"n_rows":25,"n_cols":2,"rows_kept":25,"cut":false,"hidden":false,"merged":[]}
[null,"Перечень кабинетов, лабораторий, мастерских и др. для подготовки"]
[null," по специальности СПО"]
["№","Наименование"]
[null,"Кабинеты:"]
[1,"гуманитарных и социально-экономических дисциплин;"]
[2,"педагогики и психологии;"]
[3,"физиологии, анатомии и гигиены;"]
[4,"иностранного языка;"]
[5,"русского языка с методикой преподавания;"]
[6,"математики с методикой преподавания;"]
[7,"естествознания с методикой преподавания;"]
[8,"музыки и методики музыкального воспитания;"]
[9,"методики обучения продуктивным видам деятельности;"]
[10,"детской литературы;"]
[11,"теории и методики физического воспитания;"]
[12,"безопасности жизнедеятельности."]
[null,"Лаборатории:"]
[1,"информатики и информационно-коммуникационных технологий."]
[null,"Спортивный комплекс:"]
[1,"спортивный зал;"]
[2,"спортивная площадка;"]
[3,"стрелковый тир (в любой модификации, включая электронный) или место для стрельбы"]
[null," Залы:"]
[1,"библиотека, читальный зал с выходом в сеть Интернет;"]
[2,"актовый зал."]

{"sheet":"Лист1","index":6,"n_rows":0,"n_cols":0,"rows_kept":0,"cut":false,"hidden":true,"merged":[]}